bitfinex/quotes_BTCUSD_20230901
["timestamp","ask_amount","ask_price","bid_price","bid_amount"]
[1693528600402,0.02150283,26043.0,26042.0,1.67055078]
[1693528600604,0.02150283,26043.0,26042.0,1.67043078]
[1693528600853,0.02150283,26043.0,26042.0,1.67031078]
[1693528601024,0.02150283,26043.0,26042.0,1.67019078]
[1693528601175,0.02150283,26043.0,26042.0,1.67013078]
[1693528601376,0.02150283,26043.0,26042.0,1.67061078]
[1693528601746,0.02150283,26043.0,26042.0,1.66965078]
[1693528601947,0.02150283,26043.0,26042.0,1.66917078]
[1693528602122,0.02150283,26043.0,26042.0,1.66893078]
[1693528602332,0.02150283,26043.0,26042.0,1.66875078]
[1693528602757,0.02150283,26043.0,26042.0,1.66869078]
[1693528602882,0.02150283,26043.0,26042.0,1.60407078]
[1693528603748,0.02150283,26043.0,26042.0,1.66863078]
[1693528603949,0.02150283,26043.0,26042.0,1.58407078]
[1693528604125,0.02150283,26043.0,26042.0,1.60407078]
[1693528604960,0.02150283,26043.0,26042.0,1.66935078]
[1693528605103,0.02150283,26043.0,26042.0,1.66911078]
[1693528605602,0.02150283,26043.0,26042.0,2.25278278]
[1693528605809,0.02150283,26043.0,26042.0,2.41900278]
[1693528606115,0.09212517,26045.0,26042.0,2.41894278]
[1693528606313,0.09212517,26045.0,26043.0,0.56528678]
[1693528606515,0.02149952,26044.0,26043.0,0.56528678]
[1693528606629,0.02149952,26044.0,26043.0,1.79696678]
[1693528606842,0.02149952,26044.0,26043.0,1.79594678]
[1693528607037,0.02149952,26044.0,26043.0,1.79576678]
[1693528607300,0.02149952,26044.0,26043.0,2.37107678]
[1693528607504,0.02149952,26044.0,26043.0,2.36333678]
[1693528607705,0.02149952,26044.0,26043.0,2.29319678]
[1693528608087,0.11362469,26044.0,26043.0,2.29319678]
[1693528608295,0.11662469,26044.0,26043.0,2.29319678]
[1693528609042,0.11662469,26044.0,26043.0,2.29519678]
[1693528611586,0.25488137,26044.0,26043.0,2.29519678]
[1693528612748,0.1627562,26044.0,26043.0,2.29519678]
[1693528613179,0.1627562,26044.0,26043.0,1.71922678]
[1693528615286,0.1627562,26044.0,26043.0,1.14325678]
[1693528616870,0.34709758,26044.0,26043.0,1.14325678]
[1693528618034,0.36579393,26044.0,26043.0,1.14325678]
[1693528619638,0.66517865,26044.0,26043.0,0.42908678]
[1693528620906,0.43475192,26044.0,26043.0,0.42908678]
[1693528621237,0.665198,26044.0,26043.0,0.42908678]
[1693528622093,0.41189863,26044.0,26043.0,0.42908678]
[1693528624188,0.41189863,26044.0,26043.0,1.00505678]
[1693528625407,0.18145255,26044.0,26043.0,0.42908678]
[1693528631214,0.43414339,26044.0,26043.0,0.42908678]
[1693528634390,0.18145255,26044.0,26043.0,0.42908678]
[1693528634527,0.25503702,26044.0,26043.0,0.42908678]
[1693528634727,0.18145255,26044.0,26043.0,0.42908678]
[1693528636806,0.18145255,26044.0,26043.0,2.15699678]
[1693528637007,0.18145255,26044.0,26043.0,2.27519678]
[1693528637213,0.2550378,26044.0,26043.0,2.27519678]
[1693528637420,0.41199083,26044.0,26043.0,2.27519678]
[1693528640366,0.18145255,26044.0,26043.0,2.27519678]
[1693528640516,0.41199247,26044.0,26043.0,2.27519678]
[1693528659036,0.41199247,26044.0,26043.0,2.37085678]
[1693528659287,0.41199247,26044.0,26043.0,2.37019678]
[1693528659503,0.41199247,26044.0,26043.0,2.36851678]
[1693528659733,0.41199247,26044.0,26043.0,2.37139678]
[1693528659960,0.41199247,26044.0,26043.0,2.37109678]
[1693528660194,0.41199247,26044.0,26043.0,2.36479678]
[1693528660412,0.41199247,26044.0,26043.0,2.36491678]
[1693528660560,0.41199247,26044.0,26043.0,2.36023678]
[1693528660766,0.41199247,26044.0,26043.0,2.29519678]
[1693528662230,0.41199247,26044.0,26043.0,0.56728678]
[1693528662356,0.41199247,26044.0,26043.0,2.29519678]
[1693528668867,0.41199247,26044.0,26043.0,2.69959678]
[1693528669119,0.09522788,26044.0,26043.0,3.39691678]
[1693528669314,0.09222788,26046.0,26045.0,0.14]
[1693528669584,0.23056971,26047.0,26046.0,0.04]
[1693528669757,0.09222788,26047.0,26046.0,1.89889478]
[1693528669982,0.09222788,26048.0,26046.0,2.47479878]
[1693528670187,0.09222788,26048.0,26047.0,0.40708678]
[1693528670334,0.09222788,26048.0,26047.0,3.26926278]
[1693528670712,0.09222788,26048.0,26047.0,3.37882278]
[1693528670918,0.23056971,26049.0,26048.0,0.04]
[1693528671121,0.23056971,26049.0,26048.0,2.59286378]
[1693528671329,0.23056971,26049.0,26048.0,2.68526378]
[1693528671535,0.23056971,26049.0,26048.0,2.69030378]
[1693528671735,0.09222788,26049.0,26048.0,2.68856378]
[1693528672066,0.09322788,26049.0,26048.0,2.69854378]
[1693528672267,0.09422788,26049.0,26048.0,2.71384378]
[1693528672471,0.09322788,26049.0,26048.0,2.70128378]
[1693528672692,0.09522788,26049.0,26048.0,2.72316378]
[1693528672911,0.09822788,26049.0,26048.0,2.76442378]
[1693528673073,0.09822788,26049.0,26048.0,2.76430378]
[1693528673267,0.09822788,26049.0,26048.0,2.76418378]
[1693528673490,0.09822788,26049.0,26048.0,2.76394378]
[1693528673693,0.006,26049.0,26048.0,2.76502378]
[1693528673894,0.006,26049.0,26048.0,2.76460378]
[1693528674433,0.006,26049.0,26048.0,2.76394378]
[1693528674666,0.006,26049.0,26048.0,2.76388378]
[1693528675371,0.006,26049.0,26048.0,2.76418378]
[1693528675569,0.006,26049.0,26048.0,2.76430378]
[1693528675745,0.006,26049.0,26048.0,2.76442378]
[1693528675950,0.006,26049.0,26048.0,2.76448378]
[1693528676157,0.006,26049.0,26048.0,2.76430378]
[1693528676357,0.006,26049.0,26048.0,2.76370378]
[1693528677157,0.006,26049.0,26048.0,2.76364378]
[1693528677337,0.006,26049.0,26048.0,2.76358378]
[1693528677553,0.006,26049.0,26048.0,2.76346378]
[1693528677745,0.006,26049.0,26048.0,2.76340378]
[1693528678185,0.006,26049.0,26048.0,2.76442378]
[1693528678392,0.006,26049.0,26048.0,2.76418378]
[1693528678548,0.006,26049.0,26048.0,2.76370378]
[1693528678748,0.006,26049.0,26048.0,2.76394378]
[1693528678977,0.006,26049.0,26048.0,2.76406378]
[1693528679125,0.006,26049.0,26048.0,2.76394378]
[1693528679328,0.006,26049.0,26048.0,2.76460378]
[1693528679756,0.006,26049.0,26048.0,2.76436378]
[1693528679983,0.006,26049.0,26048.0,2.76442378]
[1693528680401,0.006,26049.0,26048.0,2.76316378]
[1693528680609,0.006,26049.0,26048.0,2.76322378]
[1693528680809,0.006,26049.0,26048.0,2.76316378]
[1693528681008,0.006,26049.0,26048.0,2.76340378]
[1693528681296,0.006,26049.0,26048.0,2.76322378]
[1693528681687,0.006,26049.0,26048.0,2.76328378]
[1693528681897,0.006,26049.0,26048.0,2.75992378]
[1693528682097,0.006,26049.0,26048.0,2.75974378]
[1693528682303,0.006,26049.0,26048.0,2.75278378]
[1693528682514,0.006,26049.0,26048.0,2.75332378]
[1693528682725,0.02389876,26049.0,26048.0,2.75386378]
[1693528682943,0.02389876,26049.0,26048.0,2.78487324]
[1693528683120,0.02389876,26049.0,26048.0,2.78637324]
[1693528683320,0.02389876,26049.0,26048.0,2.79315324]
[1693528683689,0.02389876,26049.0,26048.0,2.79285324]
[1693528683949,0.02389876,26049.0,26048.0,2.79339324]
[1693528684165,0.02389876,26049.0,26048.0,2.78637324]
[1693528684380,0.02389876,26049.0,26048.0,2.75254378]
[1693528684588,0.02389876,26049.0,26048.0,2.66686378]
[1693528684994,0.02389876,26049.0,26048.0,2.64686378]
[1693528685215,0.2451212,26049.0,26048.0,2.64686378]
[1693528685421,0.33734908,26049.0,26048.0,1.77100478]
[1693528686175,0.33734908,26049.0,26048.0,0.61928678]
[1693528686520,0.33734908,26049.0,26048.0,0.114]
[1693528686521,1.05152791,26049.0,26048.0,0.114]
[1693528686656,0.95930003,26049.0,26048.0,0.114]
[1693528687461,0.95630003,26049.0,26048.0,0.077]
[1693528687666,0.95330003,26049.0,26048.0,0.04]
[1693528687905,0.95530003,26049.0,26048.0,0.042]
[1693528688104,0.37746303,26049.0,26048.0,0.042]
[1693528688326,0.37746303,26049.0,26048.0,0.04]
[1693528688727,0.37746303,26049.0,26048.0,0.042]
[1693528688728,0.40246303,26049.0,26048.0,0.042]
[1693528692832,0.18124059,26049.0,26048.0,2.27486378]
[1693528693034,0.13487492,26049.0,26048.0,2.36830378]
[1693528693236,0.13487492,26049.0,26048.0,2.36602378]
[1693528693443,0.13487492,26049.0,26048.0,2.36476378]
[1693528693622,0.13487492,26049.0,26048.0,2.36518378]
[1693528694025,0.13487492,26049.0,26048.0,2.36506378]
[1693528694184,0.13487492,26049.0,26048.0,2.36404378]
[1693528694387,0.13487492,26049.0,26048.0,2.36356378]
[1693528694586,0.13487492,26049.0,26048.0,2.36074378]
[1693528694791,0.13487492,26049.0,26048.0,2.29486378]
[1693528694987,0.13487492,26049.0,26048.0,2.36092378]
[1693528695194,0.13487492,26049.0,26048.0,2.29486378]
[1693528695615,0.27321675,26049.0,26048.0,2.29486378]
[1693528696729,0.18124059,26049.0,26048.0,2.29486378]
[1693528696933,0.27322649,26049.0,26048.0,2.29486378]
[1693528697316,0.27322649,26049.0,26048.0,1.71900478]
[1693528697601,0.27322657,26049.0,26048.0,1.71900478]
[1693528697919,0.18124059,26049.0,26048.0,1.71900478]
[1693528698330,0.40882566,26049.0,26048.0,1.12314578]
[1693528701270,0.40882566,26049.0,26048.0,1.12048639]
[1693528701644,0.59329407,26049.0,26048.0,1.12048639]
[1693528703928,0.45495224,26049.0,26048.0,1.12048639]
[1693528704696,0.60978252,26049.0,26048.0,1.12048639]
[1693528705102,0.60978252,26049.0,26048.0,0.42642739]
[1693528705324,0.75268708,26049.0,26048.0,0.42642739]
[1693528705546,0.60978252,26049.0,26048.0,0.42642739]
[1693528705692,0.84032244,26049.0,26048.0,0.42642739]
[1693528705897,0.84032244,26049.0,26048.0,1.00228639]
[1693528706099,0.60978252,26049.0,26048.0,1.00228639]
[1693528706705,0.84032244,26049.0,26048.0,1.00228639]
[1693528707308,0.60978252,26049.0,26048.0,1.00228639]
[1693528707721,0.84032244,26049.0,26048.0,1.00228639]
[1693528709031,0.84032244,26049.0,26048.0,1.57814539]
[1693528709644,0.61273737,26049.0,26048.0,1.57814539]
[1693528710685,0.42826896,26049.0,26048.0,1.57814539]
[1693528711450,0.22704206,26049.0,26048.0,1.69634539]
[1693528711655,0.22704206,26049.0,26048.0,2.80892439]
[1693528711656,0.27307289,26049.0,26048.0,2.80892439]
[1693528711855,0.25517413,26049.0,26048.0,2.82080439]
[1693528712057,0.25517413,26049.0,26048.0,2.82164439]
[1693528712058,0.11706808,26049.0,26048.0,2.82164439]
[1693528712284,0.11706808,26049.0,26048.0,2.82140439]
[1693528712454,0.10206808,26049.0,26048.0,2.81962439]
[1693528712654,0.09506808,26049.0,26048.0,2.85682439]
[1693528712857,0.09806808,26049.0,26048.0,2.90150439]
[1693528713192,0.09506808,26049.0,26048.0,2.86060439]
[1693528713381,0.09806808,26049.0,26048.0,2.89688439]
[1693528713560,0.23017413,26050.0,26048.0,2.81700439]
[1693528713742,0.13810605,26050.0,26049.0,0.52528678]
[1693528713940,0.13810605,26050.0,26049.0,2.32923778]
[1693528714153,0.13810605,26050.0,26049.0,2.36591839]
[1693528714352,0.13810605,26050.0,26049.0,2.55802839]
[1693528714556,0.13810605,26050.0,26049.0,2.55964839]
[1693528714755,0.13810605,26050.0,26049.0,2.56018839]
[1693528714955,0.13810605,26050.0,26049.0,2.55904839]
[1693528715297,0.13810605,26050.0,26049.0,2.55982839]
[1693528715506,0.14110605,26050.0,26049.0,2.59664839]
[1693528715706,0.14410605,26050.0,26049.0,2.63352839]
[1693528715864,0.14410605,26050.0,26049.0,2.63190839]
[1693528716066,0.14410605,26050.0,26049.0,2.63154839]
[1693528716262,0.14410605,26050.0,26049.0,2.63118839]
[1693528716459,0.14410605,26050.0,26049.0,2.63052839]
[1693528716721,0.14410605,26050.0,26049.0,2.63040839]
[1693528716921,0.14410605,26050.0,26049.0,2.63010839]
[1693528717125,0.14410605,26050.0,26049.0,2.63004839]
[1693528717429,0.14410605,26050.0,26049.0,2.62980839]
[1693528717628,0.14410605,26050.0,26049.0,2.62992839]
[1693528717807,0.14410605,26050.0,26049.0,2.62812839]
[1693528718008,0.14410605,26050.0,26049.0,2.62998839]
[1693528718415,0.14410605,26050.0,26049.0,2.62794839]
[1693528718622,0.14410605,26050.0,26049.0,2.62902839]
[1693528718988,0.14410605,26050.0,26049.0,2.62932839]
[1693528719159,0.14410605,26050.0,26049.0,2.62884839]
[1693528719359,0.14410605,26050.0,26049.0,2.62878839]
[1693528719596,0.14410605,26050.0,26049.0,2.63118839]
[1693528719805,0.14410605,26050.0,26049.0,2.63094839]
[1693528720213,0.14410605,26050.0,26049.0,2.63148839]
[1693528720409,0.14410605,26050.0,26049.0,2.63178839]
[1693528720637,0.16192257,26050.0,26049.0,2.63178839]
[1693528720811,0.16192257,26050.0,26049.0,2.63124839]
[1693528720971,0.16192257,26050.0,26049.0,2.63118839]
[1693528721172,0.16192257,26050.0,26049.0,2.43973839]
[1693528721576,0.16192257,26050.0,26049.0,2.43967839]
[1693528721797,0.16192257,26050.0,26049.0,2.43979839]
[1693528722120,0.16192257,26050.0,26049.0,2.43985839]
[1693528722554,0.16192257,26050.0,26049.0,2.43979839]
[1693528722734,0.16192257,26050.0,26049.0,2.43967839]
[1693528722979,0.16192257,26050.0,26049.0,2.43979839]
[1693528723183,0.16192257,26050.0,26049.0,2.43973839]
[1693528723367,0.16192257,26050.0,26049.0,2.43985839]
[1693528723662,0.16192257,26050.0,26049.0,2.44081839]
[1693528723894,0.16192257,26050.0,26049.0,2.63946839]
[1693528724077,0.11591033,26050.0,26049.0,2.98188839]
[1693528724302,0.11591033,26050.0,26049.0,2.96430839]
[1693528724526,0.09809381,26050.0,26049.0,2.95740839]
[1693528724703,0.09809381,26050.0,26049.0,2.94882839]
[1693528724901,0.09809381,26050.0,26049.0,2.94876839]
[1693528725059,0.09809381,26050.0,26049.0,2.94858839]
[1693528725604,0.09809381,26050.0,26049.0,2.94876839]
[1693528725890,0.09809381,26050.0,26049.0,2.94864839]
[1693528726089,0.09809381,26050.0,26049.0,2.94840839]
[1693528726241,0.09809381,26050.0,26049.0,2.94834839]
[1693528726409,0.09809381,26050.0,26049.0,2.94828839]
[1693528726820,0.09809381,26050.0,26049.0,2.94816839]
[1693528727045,0.09809381,26050.0,26049.0,2.94810839]
[1693528727246,0.09809381,26050.0,26049.0,2.94804839]
[1693528727581,0.09809381,26050.0,26049.0,2.94702839]
[1693528727755,0.09809381,26050.0,26049.0,2.94834839]
[1693528727961,0.09809381,26050.0,26049.0,2.94822839]
[1693528728168,0.09809381,26050.0,26049.0,2.94810839]
[1693528728362,0.09809381,26050.0,26049.0,2.94786839]
[1693528728571,0.09809381,26050.0,26049.0,2.94798839]
[1693528728885,0.09809381,26050.0,26049.0,2.75599839]
[1693528729089,0.09809381,26050.0,26049.0,2.75593839]
[1693528729246,0.09809381,26050.0,26049.0,2.75575839]
[1693528729433,0.09809381,26050.0,26049.0,2.75587839]
[1693528729646,0.09809381,26050.0,26049.0,2.75563839]
[1693528729847,0.09809381,26050.0,26049.0,2.75539839]
[1693528730072,0.09809381,26050.0,26049.0,2.75293839]
[1693528730268,0.09809381,26050.0,26049.0,2.75155839]
[1693528730471,0.09809381,26050.0,26049.0,2.93034839]
[1693528730688,0.23619986,26050.0,26049.0,2.92584839]
[1693528730890,0.25384845,26050.0,26049.0,2.92584839]
[1693528731097,0.25384845,26050.0,26049.0,2.92656839]
[1693528731292,0.25384845,26050.0,26049.0,2.92590839]
[1693528731474,0.25384845,26050.0,26049.0,2.85606839]
[1693528732812,0.25384845,26050.0,26049.0,2.92266839]
[1693528733015,0.25384845,26050.0,26049.0,2.92260839]
[1693528733178,0.25384845,26050.0,26049.0,2.92266839]
[1693528733413,0.25384845,26050.0,26049.0,2.92254839]
[1693528733612,0.25384845,26050.0,26049.0,2.92224839]
[1693528733832,0.25384845,26050.0,26049.0,2.85606839]
[1693528734215,0.55375143,26050.0,26049.0,0.61662739]
[1693528734431,0.56792216,26050.0,26049.0,0.79842739]
[1693528734654,0.79846208,26050.0,26049.0,0.79842739]
[1693528735135,0.79846208,26050.0,26049.0,1.37426439]
[1693528740371,0.79846208,26050.0,26049.0,1.07426439]
[1693528741180,0.61431878,26050.0,26049.0,1.07426439]
[1693528741779,0.40646529,26050.0,26049.0,1.65010139]
[1693528742206,0.43838528,26050.0,26049.0,1.65010139]
[1693528742380,0.59066206,26050.0,26049.0,1.65010139]
[1693528743934,0.36012214,26050.0,26049.0,1.65010139]
[1693528746682,0.59066206,26050.0,26049.0,1.65010139]
[1693528746887,0.36012214,26050.0,26049.0,1.65010139]
[1693528747087,0.59066206,26050.0,26049.0,1.65010139]
[1693528751988,0.40646529,26050.0,26049.0,1.65010139]
[1693528752553,0.40646529,26050.0,26049.0,2.22593839]
[1693528756680,0.62450204,26050.0,26049.0,2.22593839]
[1693528756888,0.62450204,26050.0,26049.0,2.34413839]
[1693528760620,0.39396212,26050.0,26049.0,2.34413839]
[1693528760848,0.59068964,26050.0,26049.0,2.34413839]
[1693528761186,0.40635601,26050.0,26049.0,2.34413839]
[1693528763855,0.40664523,26050.0,26049.0,2.34413839]
[1693528764410,0.36056208,26050.0,26049.0,2.43749839]
[1693528764621,0.36056208,26050.0,26049.0,2.46049839]
[1693528764830,0.20798963,26050.0,26049.0,2.45899839]
[1693528765004,0.20798963,26050.0,26049.0,2.45977839]
[1693528765206,0.16189461,26050.0,26049.0,2.45947839]
[1693528765383,0.25405495,26050.0,26049.0,2.45899839]
[1693528765591,0.25405495,26050.0,26049.0,2.45863839]
[1693528765786,0.25405495,26050.0,26049.0,2.45851839]
[1693528765989,0.25405495,26050.0,26049.0,2.45821839]
[1693528766193,0.25405495,26050.0,26049.0,2.45893839]
[1693528766514,0.25405495,26050.0,26049.0,2.45845839]
[1693528766696,0.25405495,26050.0,26049.0,2.66808839]
[1693528766890,0.25405495,26050.0,26049.0,2.66934839]
[1693528767097,0.25405495,26050.0,26049.0,2.66928839]
[1693528767301,0.25405495,26050.0,26049.0,2.66874839]
[1693528767510,0.25405495,26050.0,26049.0,2.66826839]
[1693528767511,0.11580893,26050.0,26049.0,2.66826839]
[1693528767753,0.11580893,26050.0,26049.0,2.66748839]
[1693528767928,0.09816034,26050.0,26049.0,2.66700839]
[1693528768131,0.09816034,26050.0,26049.0,2.66412839]
[1693528768266,0.09816034,26050.0,26049.0,2.66454839]
[1693528768466,0.09816034,26050.0,26049.0,2.66376839]
[1693528768668,0.09816034,26050.0,26049.0,2.66430839]
[1693528768868,0.09816034,26050.0,26049.0,2.66586839]
[1693528769156,0.09816034,26050.0,26049.0,2.66406839]
[1693528769332,0.09816034,26050.0,26049.0,2.67240839]
[1693528769530,0.09816034,26050.0,26049.0,2.67222839]
[1693528769740,0.09816034,26050.0,26049.0,2.67156839]
[1693528769965,0.09816034,26050.0,26049.0,2.67078839]
[1693528770187,0.09816034,26050.0,26049.0,2.66772839]
[1693528770388,0.09816034,26050.0,26049.0,2.66676839]
[1693528770546,0.09816034,26050.0,26049.0,2.66400839]
[1693528770745,0.09816034,26050.0,26049.0,2.66448839]
[1693528770904,0.09816034,26050.0,26049.0,2.65650839]
[1693528771141,0.09816034,26050.0,26049.0,2.65248839]
[1693528771500,0.09816034,26050.0,26049.0,2.65026839]
[1693528771643,0.09816034,26050.0,26049.0,2.64978839]
[1693528771863,0.09816034,26050.0,26049.0,2.64864839]
[1693528772060,0.09816034,26050.0,26049.0,2.64336839]
[1693528772285,0.09816034,26050.0,26049.0,2.64108839]
[1693528772504,0.09816034,26050.0,26049.0,2.64102839]
[1693528772881,0.09816034,26050.0,26049.0,2.64204839]
[1693528773110,0.09816034,26050.0,26049.0,2.63934839]
[1693528773524,0.09816034,26050.0,26049.0,2.63886839]
[1693528773727,0.09816034,26050.0,26049.0,2.64150839]
[1693528774060,0.09816034,26050.0,26049.0,2.64462839]
[1693528774291,0.09816034,26050.0,26049.0,2.64444839]
[1693528774507,0.09816034,26050.0,26049.0,2.64438839]
[1693528774716,0.09816034,26050.0,26049.0,2.64336839]
[1693528774917,0.09816034,26050.0,26049.0,2.64318839]
[1693528775141,0.09816034,26050.0,26049.0,2.64378839]
[1693528775339,0.09816034,26050.0,26049.0,2.64348839]
[1693528775488,0.09816034,26050.0,26049.0,2.64360839]
[1693528775694,0.09816034,26050.0,26049.0,2.64354839]
[1693528775897,0.09816034,26050.0,26049.0,2.64348839]
[1693528776116,0.09816034,26050.0,26049.0,2.64360839]
[1693528776329,0.09816034,26050.0,26049.0,2.64414839]
[1693528776527,0.09816034,26050.0,26049.0,2.64396839]
[1693528776688,0.09816034,26050.0,26049.0,2.64372839]
[1693528776890,0.09816034,26050.0,26049.0,2.64252839]
[1693528777090,0.09816034,26050.0,26049.0,2.67380288]
[1693528777291,0.09816034,26050.0,26049.0,2.67434288]
[1693528777654,0.09816034,26050.0,26049.0,2.67500288]
[1693528777943,0.09816034,26050.0,26049.0,2.67518288]
[1693528778144,0.09816034,26050.0,26049.0,2.67488288]
[1693528778308,0.09816034,26050.0,26049.0,2.67482288]
[1693528778511,0.09816034,26050.0,26049.0,2.67404288]
[1693528778728,0.09816034,26050.0,26049.0,2.67248288]
[1693528778934,0.09816034,26050.0,26049.0,2.67416288]
[1693528779120,0.09816034,26050.0,26049.0,2.67392288]
[1693528779335,0.09816034,26050.0,26049.0,2.67380288]
[1693528779540,0.09816034,26050.0,26049.0,2.67410288]
[1693528779741,0.09816034,26050.0,26049.0,2.67398288]
[1693528780000,0.09816034,26050.0,26049.0,2.67380288]
[1693528780181,0.09816034,26050.0,26049.0,2.67422288]
[1693528780380,0.09816034,26050.0,26049.0,2.67458288]
[1693528780583,0.09816034,26050.0,26049.0,2.67446288]
[1693528780787,0.09816034,26050.0,26049.0,2.67452288]
[1693528781143,0.09816034,26050.0,26049.0,2.67488288]
[1693528781431,0.09816034,26050.0,26049.0,2.67638288]
[1693528781724,0.09816034,26050.0,26049.0,2.67644288]
[1693528781923,0.09816034,26050.0,26049.0,2.67620288]
[1693528782125,0.006,26050.0,26049.0,2.67608288]
[1693528782279,0.006,26050.0,26049.0,2.67464288]
[1693528782481,0.006,26050.0,26049.0,2.67440288]
[1693528782679,0.02359621,26050.0,26049.0,2.67446288]
[1693528782903,0.02359621,26050.0,26049.0,2.67464288]
[1693528783107,0.02359621,26050.0,26049.0,2.67458288]
[1693528783433,0.02359621,26050.0,26049.0,2.67470288]
[1693528783590,0.02359621,26050.0,26049.0,2.67476288]
[1693528783791,0.02359621,26050.0,26049.0,2.67860288]
[1693528784020,0.02359621,26050.0,26049.0,2.68052288]
[1693528784390,0.02359621,26050.0,26049.0,2.67968288]
[1693528784617,0.02359621,26050.0,26049.0,2.67932288]
[1693528785139,0.02359621,26050.0,26049.0,2.68004288]
[1693528785340,0.02359621,26050.0,26049.0,2.67998288]
[1693528785519,0.02359621,26050.0,26049.0,2.67980288]
[1693528785718,0.02359621,26050.0,26049.0,2.67950288]
[1693528785875,0.02359621,26050.0,26049.0,2.67974288]
[1693528786093,0.02359621,26050.0,26049.0,2.67968288]
[1693528786296,0.02359621,26050.0,26049.0,2.68040288]
[1693528786611,0.02359621,26050.0,26049.0,2.68004288]
[1693528786833,0.02359621,26050.0,26049.0,2.67518288]
[1693528787081,0.02359621,26050.0,26049.0,2.67476288]
[1693528787218,0.02359621,26050.0,26049.0,2.67440288]
[1693528787418,0.02359621,26050.0,26049.0,2.67434288]
[1693528787619,0.02359621,26050.0,26049.0,2.67452288]
[1693528787864,0.02359621,26050.0,26049.0,2.67458288]
[1693528788025,0.02359621,26050.0,26049.0,2.67242308]
[1693528788223,0.02359621,26050.0,26049.0,2.67254308]
[1693528788426,0.02359621,26050.0,26049.0,2.67224308]
[1693528788847,0.02359621,26050.0,26049.0,2.67254308]
[1693528789190,0.02359621,26050.0,26049.0,2.67260308]
[1693528789348,0.02359621,26050.0,26049.0,2.67254308]
[1693528789545,0.02359621,26050.0,26049.0,2.67248308]
[1693528789768,0.02359621,26050.0,26049.0,2.67302308]
[1693528789973,0.02359621,26050.0,26049.0,2.67290308]
[1693528790149,0.02359621,26050.0,26049.0,2.67296308]
[1693528790350,0.02359621,26050.0,26049.0,2.67284308]
[1693528790552,0.02359621,26050.0,26049.0,2.67206308]
[1693528790770,0.02359621,26050.0,26049.0,2.67146308]
[1693528790971,0.02359621,26050.0,26049.0,2.67128308]
[1693528791370,0.02359621,26050.0,26049.0,2.67158308]
[1693528791729,0.02359621,26050.0,26049.0,2.67116308]
[1693528792134,0.02359621,26050.0,26049.0,2.67152308]
[1693528792290,0.02359621,26050.0,26049.0,2.67146308]
[1693528792488,0.02359621,26050.0,26049.0,2.67062308]
[1693528792696,0.02359621,26050.0,26049.0,2.66990308]
[1693528792856,0.02359621,26050.0,26049.0,2.67074308]
[1693528793212,0.02359621,26050.0,26049.0,2.67068308]
[1693528793423,0.02359621,26050.0,26049.0,2.67056308]
[1693528793752,0.02359621,26050.0,26049.0,2.66972308]
[1693528793912,0.02359621,26050.0,26049.0,2.67050308]
[1693528794276,0.02359621,26050.0,26049.0,2.67230308]
[1693528794455,0.02359621,26050.0,26049.0,2.67260308]
[1693528794681,0.02359621,26050.0,26049.0,2.67338308]
[1693528794854,0.02359621,26050.0,26049.0,2.67350308]
[1693528795084,0.02359621,26050.0,26049.0,2.67344308]
[1693528795283,0.02359621,26050.0,26049.0,2.67332308]
[1693528795482,0.02359621,26050.0,26049.0,2.67326308]
[1693528795691,0.02359621,26050.0,26049.0,2.67362308]
[1693528795905,0.02359621,26050.0,26049.0,2.67356308]
[1693528796080,0.02359621,26050.0,26049.0,2.67476308]
[1693528796284,0.02359621,26050.0,26049.0,2.67398308]
[1693528796484,0.02359621,26050.0,26049.0,2.67392308]
[1693528796781,0.02359621,26050.0,26049.0,2.67386308]
[1693528797105,0.02359621,26050.0,26049.0,2.67350308]
[1693528797308,0.02359621,26050.0,26049.0,2.67344308]
[1693528797515,0.02359621,26050.0,26049.0,2.67368308]
[1693528797673,0.02359621,26050.0,26049.0,2.67344308]
[1693528797873,0.02359621,26050.0,26049.0,2.67338308]
[1693528798132,0.02359621,26050.0,26049.0,2.67500308]
[1693528798359,0.02359621,26050.0,26049.0,2.67380308]
[1693528798533,0.02359621,26050.0,26049.0,2.67356308]
[1693528798733,0.02359621,26050.0,26049.0,2.67362308]
[1693528798949,0.02359621,26050.0,26049.0,2.67356308]
[1693528799154,0.02359621,26050.0,26049.0,2.67344308]
[1693528799353,0.02359621,26050.0,26049.0,2.67350308]
[1693528799503,0.02359621,26050.0,26049.0,2.67356308]
[1693528799940,0.02359621,26050.0,26049.0,2.67350308]
[1693528800252,0.02359621,26050.0,26049.0,2.67296308]
[1693528800453,0.02359621,26050.0,26049.0,2.67452308]
[1693528800607,0.02359621,26050.0,26049.0,2.67608308]
[1693528800784,0.02359621,26050.0,26049.0,2.67602308]
[1693528800987,0.02359621,26050.0,26049.0,2.67470308]
[1693528801238,0.02359621,26050.0,26049.0,2.67476308]
[1693528801445,0.02359621,26050.0,26049.0,2.67614308]
[1693528801641,0.02359621,26050.0,26049.0,2.67716308]
[1693528801857,0.02359621,26050.0,26049.0,2.67698308]
[1693528802162,0.02359621,26050.0,26049.0,2.67596308]
[1693528802365,0.02359621,26050.0,26049.0,2.67476308]
[1693528802732,0.02359621,26050.0,26049.0,2.68304308]
[1693528802871,0.02359621,26050.0,26049.0,2.68832308]
[1693528803065,0.02359621,26050.0,26049.0,2.68904308]
[1693528803272,0.02359621,26050.0,26049.0,2.68772308]
[1693528803488,0.09216034,26052.0,26049.0,3.71606308]
[1693528803684,0.13937393,26053.0,26052.0,0.61311161]
[1693528803685,0.00112791,26053.0,26052.0,0.61311161]
[1693528803910,0.00112791,26053.0,26052.0,2.84571139]
[1693528804135,0.00112791,26053.0,26052.0,2.99063139]
[1693528804336,0.00112791,26053.0,26052.0,2.99255139]
[1693528804537,0.00112791,26053.0,26052.0,2.98571139]
[1693528804686,0.00112791,26053.0,26052.0,2.97857139]
[1693528804895,0.00312791,26053.0,26052.0,2.97833139]
[1693528805098,0.00312791,26053.0,26052.0,2.97815139]
[1693528805339,0.09528825,26053.0,26052.0,2.98031139]
[1693528805545,0.00312791,26053.0,26052.0,2.97875139]
[1693528805741,0.09528825,26053.0,26052.0,2.97167139]
[1693528805944,0.00312791,26053.0,26052.0,2.96951139]
[1693528806143,0.00312791,26053.0,26052.0,2.96651139]
[1693528806351,0.00112791,26053.0,26052.0,2.96681139]
[1693528806561,0.00312791,26053.0,26052.0,2.99265139]
[1693528806894,0.00312791,26053.0,26052.0,2.99283139]
[1693528807081,0.00312791,26053.0,26052.0,2.99295139]
[1693528807386,0.00312791,26053.0,26052.0,3.18479139]
[1693528807586,0.00312791,26053.0,26052.0,3.18431139]
[1693528807748,0.00512791,26053.0,26052.0,3.21379139]
[1693528808072,0.00512791,26053.0,26052.0,3.21445139]
[1693528808271,0.00512791,26053.0,26052.0,3.21451139]
[1693528808503,0.00512791,26053.0,26052.0,3.21463139]
[1693528808944,0.00512791,26053.0,26052.0,3.21433139]
[1693528809073,0.00512791,26053.0,26052.0,3.21439139]
[1693528809273,0.00512791,26053.0,26052.0,3.21481139]
[1693528809505,0.00512791,26053.0,26052.0,3.21661139]
[1693528809909,0.00512791,26053.0,26052.0,3.21859139]